bitfinex/quotes_SOLUSD_20241214
["timestamp","ask_amount","ask_price","bid_price","bid_amount"]
[1734171556938,8.23310167,225.14,225.08,23.776884]
[1734171557119,8.23310167,225.15,225.09,0.12549]
[1734171557317,8.23310167,225.16,225.1,23.776884]
[1734171557743,8.23310167,225.17,225.1,32.00998567]
[1734171558132,8.23310167,225.16,225.1,23.776884]
[1734171559254,8.23310167,225.13,225.06,8.23310167]
[1734171560258,8.23310167,225.14,225.07,8.23310167]
[1734171560854,8.23310167,225.13,225.06,32.13547567]
[1734171561459,8.23310167,225.12,225.06,23.776884]
[1734171562444,32.93240668,225.17,225.05,1.6547]
[1734171562445,8.23310167,225.11,225.05,1.6547]
[1734171562754,8.23310167,225.09,225.05,1.6547]
[1734171563655,8.23310167,225.07,224.99,6.1103]
[1734171563960,8.23310167,225.07,225.0,8.23310167]
[1734171564851,8.23310167,225.08,225.01,8.23310167]
[1734171565256,8.23310167,225.09,225.02,8.23310167]
[1734171566276,8.23310167,225.09,225.0,0.25098]
[1734171566481,8.23310167,225.08,225.01,8.23310167]
[1734171568068,8.23310167,225.08,224.98,1.6555]
[1734171568271,8.23310167,225.04,224.98,1.6555]
[1734171570561,8.23310167,225.06,224.98,9.88860167]
[1734171571662,8.23310167,225.06,224.99,23.902374]
[1734171573366,8.3203,225.11,224.99,23.902374]
[1734171573367,8.23310167,225.05,224.99,23.902374]
[1734171575663,8.23310167,225.05,224.98,1.6555]
[1734171578486,8.23310167,225.04,224.98,1.6555]
[1734171578689,8.23310167,225.03,224.98,1.6555]
[1734171579983,8.23310167,225.04,224.98,1.6555]
[1734171580185,8.23310167,225.05,224.98,1.6555]
[1734171583389,6.6643,225.08,224.98,1.6555]
[1734171583694,8.23310167,225.05,224.98,1.6555]
[1734171585373,8.23310167,225.03,224.98,1.6555]
[1734171587080,8.23310167,225.01,224.94,8.23310167]
[1734171587283,8.23310167,225.01,224.95,23.776884]
[1734171588492,8.23310167,225.01,224.93,9.79690167]
[1734171589596,8.23310167,225.02,224.95,8.23310167]
[1734171590075,8.23310167,225.0,224.94,8.23310167]
[1734171590281,8.23310167,225.0,224.93,8.23310167]
[1734171591394,8.23310167,224.96,224.9,0.5361226]
[1734171592399,8.23310167,224.97,224.9,0.5361226]
[1734171592692,8.23310167,224.97,224.9,8.76922427]
[1734171593197,7.5538,225.03,224.9,0.5361226]
[1734171593198,8.23310167,224.95,224.9,0.5361226]
[1734171593416,8.23310167,224.94,224.9,0.5361226]
[1734171594499,24.9981,225.02,224.9,0.5361226]
[1734171594500,8.23310167,224.93,224.9,0.5361226]
[1734171595295,6.6671,224.99,224.9,0.5361226]
[1734171595487,8.23310167,224.94,224.9,0.5361226]
[1734171595694,8.23310167,224.95,224.9,0.5361226]
[1734171596104,20.0,225.0,224.9,8.76922427]
[1734171596313,14.2197,225.03,224.94,8.23310167]
[1734171596314,8.23310167,225.01,224.94,8.23310167]
[1734171596484,8.23310167,225.01,224.93,8.23310167]
[1734171597110,8.23310167,225.0,224.93,8.23310167]
[1734171598186,8.23310167,225.0,224.92,0.25098]
[1734171598386,8.23310167,225.0,224.93,8.23310167]
[1734171600104,8.23310167,224.99,224.92,8.48408167]
[1734171600487,8.23310167,224.99,224.93,23.776884]
[1734171600690,8.23310167,224.99,224.92,0.25098]
[1734171600890,8.23310167,224.99,224.93,23.776884]
[1734171601598,20.0,225.04,224.95,32.00998567]
[1734171601908,8.23310167,225.02,224.95,32.00998567]
[1734171602205,8.23310167,225.01,224.92,0.66669858]
[1734171602508,32.93240668,225.06,224.93,8.50310167]
[1734171602696,8.23310167,225.0,224.93,8.50310167]
[1734171603719,8.23310167,225.0,224.94,23.776884]
[1734171604631,8.23310167,225.0,224.93,0.27]
[1734171604796,8.23310167,225.0,224.93,0.25098]
[1734171604996,32.93240668,225.06,224.91,8.23310167]
[1734171604997,8.23310167,224.98,224.91,8.23310167]
[1734171605194,8.23310167,224.98,224.92,0.27]
[1734171605903,8.23310167,224.97,224.9,10.40082427]
[1734171607909,8.23310167,224.98,224.9,10.40082427]
[1734171608425,8.23310167,224.97,224.9,2.1677226]
[1734171608630,8.23310167,224.95,224.9,2.1677226]
[1734171608998,8.23310167,224.94,224.9,2.1677226]
[1734171609739,20.0,225.01,224.9,2.1677226]
[1734171610041,8.23310167,224.96,224.9,2.1677226]
[1734171610336,8.23310167,224.95,224.9,2.1677226]
[1734171614452,26.6664,225.01,224.9,2.1677226]
[1734171614769,8.23310167,224.95,224.9,2.1677226]
[1734171615443,8.23310167,224.95,224.9,0.5361226]
[1734171616160,8.23310167,224.93,224.9,0.5361226]
[1734171617959,8.23310167,224.91,224.9,0.5361226]
[1734171619745,6.6682,224.95,224.9,0.5361226]
[1734171619950,8.23310167,224.91,224.9,0.5361226]
[1734171621455,6.6669,224.99,224.9,0.5361226]
[1734171621654,8.23310167,224.92,224.9,0.5361226]
[1734171621858,8.23310167,224.91,224.9,0.5361226]
[1734171623755,6.6669,224.99,224.9,0.5361226]
[1734171624061,8.23310167,224.92,224.9,0.5361226]
[1734171624258,8.23310167,224.91,224.9,0.5361226]
[1734171627173,8.23310167,224.91,224.78,1.6651]
[1734171627474,8.244,224.93,224.78,1.6651]
[1734171627475,8.23310167,224.8,224.78,1.6651]
[1734171627873,8.23310167,224.79,224.71,2.33234035]
[1734171628050,20.0,224.88,224.73,8.23310167]
[1734171628250,8.23310167,224.84,224.73,0.66722192]
[1734171628571,8.23310167,224.84,224.77,7.73310167]
[1734171628766,8.23310167,224.83,224.73,0.66722192]
[1734171628970,8.23310167,224.83,224.76,8.23310167]
[1734171629573,8.23310167,224.82,224.75,8.23310167]
[1734171631255,8.23310167,224.82,224.76,8.23310167]
[1734171631750,8.23310167,224.82,224.75,8.23310167]
[1734171632675,6.6693,224.91,224.77,8.23310167]
[1734171632979,8.23310167,224.84,224.78,23.902374]
[1734171633183,6.6693,224.91,224.78,24.56952367]
[1734171633385,8.23310167,224.84,224.78,24.56952367]
[1734171633677,6.6693,224.91,224.78,24.56952367]
[1734171633877,6.6693,224.91,224.78,32.67713534]
[1734171634048,8.23310167,224.85,224.78,32.67713534]
[1734171634254,8.23310167,224.84,224.77,32.00998567]
[1734171635276,8.23310167,224.83,224.77,23.776884]
[1734171636578,8.23310167,224.81,224.75,23.902374]
[1734171638968,8.23310167,224.8,224.75,23.902374]
[1734171639190,8.23310167,224.79,224.75,23.776884]
[1734171639352,8.23310167,224.78,224.72,20.66724185]
[1734171639556,8.23310167,224.78,224.73,23.902374]
[1734171641069,8.23310167,224.78,224.74,20.0]
[1734171641477,8.23310167,224.77,224.74,20.0]
[1734171642071,8.23310167,224.77,224.73,20.0]
[1734171642771,8.23310167,224.78,224.72,20.66724185]
[1734171643381,8.23310167,224.78,224.74,20.0]
[1734171644107,8.23310167,224.75,224.72,0.66724185]
[1734171644270,8.23310167,224.75,224.72,23.776884]
[1734171644788,8.23310167,224.73,224.63,11.129]
[1734171644974,8.23310167,224.72,224.65,8.23310167]
[1734171645178,8.23310167,224.71,224.64,0.6674698]
[1734171645373,8.23310167,224.71,224.64,8.90057147]
[1734171645573,8.23310167,224.72,224.65,8.23310167]
[1734171645981,20.0,224.8,224.67,8.76922427]
[1734171646185,8.23310167,224.75,224.69,0.12549]
[1734171646491,8.23310167,224.76,224.69,32.26096567]
[1734171646886,8.23310167,224.76,224.69,24.027864]
[1734171647069,8.23310167,224.76,224.69,32.26096567]
[1734171647269,8.23310167,224.74,224.68,23.776884]
[1734171647468,8.23310167,224.8,224.73,8.23310167]
[1734171647776,1.5806,224.85,224.74,23.902374]
[1734171647974,32.93240668,224.84,224.74,23.776884]
[1734171648173,8.23310167,224.83,224.77,23.776884]
[1734171648475,8.23310167,224.82,224.77,23.776884]
[1734171648687,8.23310167,224.82,224.76,23.902374]
[1734171649083,6.6695,224.91,224.76,23.902374]
[1734171649084,8.23310167,224.83,224.76,32.13547567]
[1734171649298,8.23310167,224.83,224.76,32.80263435]
[1734171650394,6.6695,224.91,224.77,0.25098]
[1734171650573,8.23310167,224.85,224.8,23.776884]
[1734171651182,8.23310167,224.85,224.79,0.12549]
[1734171651908,8.23310167,224.85,224.78,23.776884]
[1734171652074,8.23310167,224.84,224.8,20.0]
[1734171652501,8.23310167,224.84,224.77,24.56950989]
[1734171652898,8.23310167,224.84,224.8,20.0]
[1734171658802,8.23310167,224.84,224.8,20.0]
[1734171659886,1.5806,224.93,224.81,23.776884]
[1734171660081,8.23310167,224.84,224.81,23.776884]
[1734171660303,1.5806,224.93,224.82,0.25098]
[1734171660600,1.5806,224.93,224.84,20.0]
[1734171660601,8.23310167,224.89,224.84,20.0]
[1734171661098,8.23310167,224.89,224.83,23.776884]
[1734171661682,8.23310167,224.88,224.83,23.776884]
[1734171662129,11.19619365,224.99,224.86,0.12549]
[1734171662293,8.23310167,224.94,224.87,33.79566567]
[1734171662493,8.23310167,224.94,224.89,23.776884]
[1734171663013,8.23310167,224.93,224.89,23.776884]
[1734171663713,8.23310167,224.94,224.89,23.776884]
[1734171663891,8.23310167,224.95,224.89,23.776884]
[1734171664324,8.23310167,224.95,224.88,32.00998567]
[1734171664525,6.0271,225.03,224.94,23.776884]
[1734171664704,8.23310167,225.02,224.94,32.67666721]
[1734171665222,8.23310167,225.01,224.94,32.67666721]
[1734171667516,1.5582,225.07,224.95,8.48408167]
[1734171667815,1.5582,225.07,224.97,0.12549]
[1734171667816,8.23310167,225.02,224.97,0.12549]
[1734171668201,8.23310167,225.03,224.97,0.12549]
[1734171669031,8.23310167,225.0,224.96,23.776884]
[1734171669198,8.23310167,224.98,224.93,23.902374]
[1734171669403,8.23310167,224.98,224.93,0.12549]
[1734171669705,8.23310167,224.99,224.93,0.12549]
[1734171670227,8.23310167,225.01,224.94,8.23310167]
[1734171670592,8.23310167,225.01,224.95,23.776884]
[1734171671228,1.5582,225.07,224.96,0.25098]
[1734171671415,8.23310167,225.02,224.96,0.25098]
[1734171671821,1.5582,225.07,224.95,23.776884]
[1734171671822,8.23310167,225.01,224.95,23.776884]
[1734171672212,8.23310167,225.0,224.95,23.776884]
[1734171672417,8.23310167,224.99,224.95,23.776884]
[1734171672617,8.23310167,224.99,224.93,24.027864]
[1734171673617,8.23310167,224.96,224.9,20.0]
[1734171674341,8.23310167,224.97,224.9,28.23310167]
[1734171674505,8.23310167,224.95,224.88,8.23310167]
[1734171674711,8.23310167,224.93,224.87,7.7206]
[1734171674913,8.23310167,224.93,224.87,1.5347]
[1734171675817,8.23310167,224.94,224.87,1.5347]
[1734171676012,8.23310167,224.94,224.88,23.776884]
[1734171677122,8.23310167,224.95,224.88,32.00998567]
[1734171677649,20.0,225.03,224.9,32.13547567]
[1734171677947,8.23310167,224.99,224.91,8.23310167]
[1734171678517,8.23310167,224.98,224.91,8.23310167]
[1734171680933,8.23310167,224.99,224.91,8.23310167]
[1734171682434,8.23310167,224.99,224.92,8.23310167]
[1734171682638,8.23310167,225.0,224.93,23.776884]
[1734171686449,8.23310167,225.01,224.93,32.00998567]
[1734171686956,32.93240668,225.06,224.91,8.23310167]
[1734171686957,8.23310167,224.98,224.91,8.23310167]
[1734171688049,8.23310167,224.97,224.9,8.23310167]
[1734171690076,8.23310167,224.96,224.9,23.776884]
[1734171691873,8.23310167,224.96,224.88,8.35859167]
[1734171692062,40.66287854,225.06,224.88,8.35859167]
[1734171692063,8.23310167,224.94,224.88,23.776884]
[1734171693142,8.23310167,224.95,224.88,32.00998567]
[1734171694552,8.23310167,224.96,224.89,8.23310167]
[1734171696171,8.23310167,224.95,224.88,32.00998567]
[1734171697666,8.23310167,224.95,224.88,23.776884]
[1734171698169,8.23310167,224.95,224.88,32.00998567]
[1734171699269,8.23310167,224.95,224.88,23.776884]
[1734171700651,8.23310167,224.95,224.88,32.00998567]
[1734171703367,8.23310167,224.95,224.88,23.776884]
[1734171704649,8.23310167,224.95,224.89,0.13825]
[1734171707663,8.23310167,224.94,224.89,0.13825]
[1734171709371,8.23310167,224.95,224.89,0.13825]
[1734171711397,8.23310167,224.94,224.89,0.13825]
[1734171711699,2.67202855,225.02,224.89,0.13825]
[1734171711700,8.23310167,224.91,224.89,0.13825]
[1734171711987,8.23310167,224.9,224.89,0.13825]
[1734171715081,6.6685,224.94,224.89,0.13825]
[1734171715379,8.23310167,224.9,224.89,0.13825]
[1734171717597,20.0,224.95,224.89,0.13825]
[1734171717801,8.23310167,224.91,224.89,0.13825]
[1734171718886,26.6682,224.95,224.89,0.13825]
[1734171719285,8.23310167,224.93,224.89,0.13825]
[1734171719492,8.23310167,224.94,224.89,0.13825]
[1734171724591,8.23310167,224.93,224.89,0.13825]
[1734171725218,20.0,224.96,224.89,0.13825]
[1734171725413,8.23310167,224.93,224.89,0.13825]
[1734171726795,20.0,224.96,224.89,0.13825]
[1734171726995,8.23310167,224.94,224.89,0.13825]
[1734171728013,8.23310167,224.93,224.89,0.13825]
[1734171728194,8.23310167,224.93,224.87,23.776884]
[1734171729288,8.23310167,224.93,224.85,32.00998567]
[1734171729701,8.23310167,224.93,224.86,0.12549]
[1734171730709,8.23310167,224.91,224.85,23.776884]
[1734171730912,8.23310167,224.91,224.84,6.317]
[1734171730913,8.23310167,224.89,224.8,20.66699131]
[1734171731235,8.23310167,224.88,224.82,21.5975]
[1734171732017,8.23310167,224.87,224.82,21.5975]
[1734171732216,8.23310167,224.87,224.82,1.5975]
[1734171732813,8.20310167,224.87,224.82,1.5975]
[1734171733631,6.6689,224.93,224.82,1.5975]
[1734171733927,8.23310167,224.87,224.82,1.5975]
[1734171735522,6.6689,224.93,224.82,1.5975]
[1734171735523,8.23310167,224.86,224.82,1.5975]
[1734171738329,8.23310167,224.85,224.82,1.5975]
[1734171738641,8.23310167,224.86,224.82,1.5975]
[1734171742454,8.23310167,224.84,224.78,0.12549]
[1734171742941,8.23310167,224.84,224.77,0.12549]
[1734171743123,8.23310167,224.84,224.78,23.776884]
[1734171746031,8.23310167,224.84,224.78,23.748944]
[1734171746758,8.23310167,224.84,224.77,8.35859167]
[1734171746759,8.23310167,224.84,224.77,8.23310167]
[1734171747545,8.23310167,224.83,224.76,20.25098]
[1734171747732,8.23310167,224.84,224.77,8.23310167]
[1734171748661,8.23310167,224.83,224.77,23.776884]
[1734171748964,8.23310167,224.84,224.77,32.00998567]
[1734171750950,8.23310167,224.84,224.77,23.776884]
[1734171751151,8.23310167,224.84,224.77,32.00998567]
[1734171751475,8.23310167,224.84,224.77,23.776884]
[1734171752440,8.23310167,224.83,224.77,23.776884]
[1734171754432,7.8172,224.91,224.75,2.17642575]
[1734171754433,8.23310167,224.81,224.75,2.17642575]
[1734171754652,7.8172,224.91,224.75,1.5093]
[1734171754653,8.23310167,224.79,224.75,1.5093]
[1734171755449,8.23310167,224.79,224.73,23.902374]
[1734171756134,8.23310167,224.79,224.7,20.0]
[1734171756337,6.6715,224.84,224.72,8.23310167]
[1734171756658,6.6715,224.84,224.73,0.12549]
[1734171756954,8.23310167,224.8,224.72,8.23310167]
[1734171757139,20.0,224.86,224.75,0.12549]
[1734171757467,8.23310167,224.82,224.76,23.776884]
[1734171758038,8.23310167,224.83,224.76,32.00998567]
[1734171759968,8.23310167,224.82,224.76,23.776884]
[1734171761041,8.23310167,224.81,224.74,8.23310167]
[1734171761651,8.23310167,224.81,224.75,23.776884]
[1734171761859,8.23310167,224.82,224.75,8.23310167]
[1734171763166,8.23310167,224.82,224.76,23.776884]
[1734171764372,26.6708,224.86,224.75,8.23310167]
[1734171764558,8.23310167,224.82,224.75,8.23310167]
[1734171767690,8.23310167,224.82,224.73,24.027864]
[1734171767980,8.23310167,224.82,224.75,8.23310167]
[1734171778877,8.23310167,224.82,224.73,24.69509458]
[1734171779085,8.23310167,224.82,224.75,8.23310167]
[1734171779296,8.23310167,224.82,224.76,8.23310167]
[1734171779499,20.0,224.87,224.77,32.00998567]
[1734171779797,8.23310167,224.84,224.77,8.23310167]
[1734171781278,8.23310167,224.83,224.76,8.23310167]
[1734171781471,8.23310167,224.83,224.77,23.776884]
[1734171782205,8.23310167,224.84,224.77,32.00998567]
[1734171785286,8.23310167,224.83,224.77,32.00998567]
[1734171790304,8.23310167,224.84,224.77,32.00998567]
[1734171791003,8.23310167,224.84,224.77,23.776884]
[1734171791208,8.23310167,224.83,224.77,23.776884]
[1734171793192,6.6696,224.9,224.77,23.776884]
[1734171793390,8.23310167,224.84,224.77,32.00998567]
[1734171794417,8.23310167,224.82,224.77,23.776884]
[1734171794614,8.23310167,224.83,224.77,23.776884]
[1734171795207,8.23310167,224.84,224.77,23.776884]
[1734171795404,6.6696,224.9,224.78,8.23310167]
[1734171795604,6.6696,224.9,224.77,32.00998567]
[1734171795914,8.23310167,224.87,224.8,8.23310167]
[1734171796099,8.23310167,224.88,224.81,32.00998567]
[1734171796698,7.8172,224.91,224.81,32.00998567]
[1734171796921,8.23310167,224.89,224.82,8.23310167]
[1734171797103,8.23310167,224.88,224.81,32.00998567]
[1734171797905,7.8172,224.91,224.82,8.23310167]
[1734171798222,6.6684,224.94,224.82,8.23310167]
[1734171798425,8.23310167,224.91,224.85,8.23310167]
[1734171799218,6.2122,224.97,224.84,1.5315]
[1734171799523,8.23310167,224.91,224.85,32.00998567]
[1734171800329,6.2122,224.97,224.86,8.23310167]
[1734171800620,8.23310167,224.94,224.87,8.23310167]
[1734171800812,8.23310167,224.94,224.88,23.776884]
[1734171801604,6.2122,224.97,224.88,23.776884]
[1734171801810,8.23310167,224.94,224.88,23.776884]
[1734171803308,8.23310167,224.92,224.86,23.776884]
[1734171803507,8.23310167,224.92,224.86,32.00998567]
[1734171803707,8.23310167,224.91,224.85,23.776884]
[1734171804225,6.2122,224.97,224.86,8.23310167]
[1734171804621,8.23310167,224.93,224.86,8.23310167]
[1734171804817,6.6674,224.98,224.86,8.23310167]
[1734171805023,6.6674,224.98,224.87,23.776884]
[1734171805224,8.23310167,224.93,224.87,23.776884]
[1734171806226,8.23310167,224.91,224.85,23.776884]
[1734171806816,8.23310167,224.92,224.85,32.00998567]
[1734171810211,8.23310167,224.93,224.86,8.23310167]
[1734171811332,8.23310167,224.93,224.85,23.776884]
[1734171811712,8.23310167,224.93,224.86,8.23310167]
[1734171811913,8.23310167,224.92,224.85,23.776884]
[1734171812216,8.23310167,224.91,224.87,20.0]
[1734171812428,6.6674,224.98,224.84,1.5315]
[1734171812429,8.23310167,224.9,224.84,1.5315]
[1734171812631,8.23310167,224.9,224.85,20.0]
[1734171813548,6.6674,224.98,224.85,20.0]
[1734171813757,8.23310167,224.92,224.85,28.23310167]
[1734171814040,8.23310167,224.91,224.85,20.0]
[1734171814224,6.6674,224.98,224.86,8.23310167]
[1734171814531,8.23310167,224.93,224.86,8.23310167]
[1734171815228,8.23310167,224.9,224.85,20.0]
[1734171815433,8.23310167,224.89,224.84,1.5315]
[1734171815727,8.23310167,224.89,224.82,8.23310167]
[1734171816919,8.23310167,224.88,224.79,23.776884]
[1734171817230,8.23310167,224.89,224.82,28.23310167]
[1734171820034,8.23310167,224.92,224.85,8.23310167]
[1734171823428,8.23310167,224.89,224.82,20.0]
[1734171824639,8.23310167,224.89,224.82,28.23310167]
[1734171824849,8.23310167,224.89,224.82,20.0]
[1734171825028,8.23310167,224.89,224.82,28.23310167]
[1734171825429,8.23310167,224.88,224.79,20.0]
[1734171825733,8.23310167,224.89,224.82,8.23310167]
[1734171825940,8.23310167,224.88,224.81,8.23310167]
[1734171826147,8.23310167,224.87,224.79,8.23310167]
[1734171826828,8.23310167,224.87,224.8,8.23310167]
[1734171829852,8.23310167,224.86,224.79,28.23310167]
[1734171831152,8.23310167,224.83,224.72,25.439784]
[1734171831323,16.79449,224.92,224.72,3.43074399]
[1734171831324,8.23310167,224.82,224.72,3.43074399]
[1734171831531,8.23310167,224.82,224.75,8.23310167]
[1734171832053,8.23310167,224.82,224.72,1.6629]
[1734171832250,8.23310167,224.82,224.75,8.23310167]
[1734171833149,0.25098,224.85,224.75,8.23310167]
[1734171833344,8.23310167,224.82,224.75,8.23310167]
[1734171833657,8.23310167,224.81,224.74,28.23310167]
[1734171834147,8.23310167,224.82,224.75,8.23310167]
[1734171834352,8.23310167,224.83,224.75,8.23310167]
[1734171835171,0.25098,224.85,224.76,8.23310167]
[1734171835329,8.23310167,224.83,224.76,8.23310167]
[1734171835533,8.23310167,224.83,224.75,8.23310167]
[1734171835947,8.23310167,224.82,224.75,8.23310167]
[1734171836152,0.25098,224.85,224.76,8.23310167]
[1734171836376,8.23310167,224.83,224.75,8.23310167]
[1734171837438,8.23310167,224.82,224.75,8.23310167]
[1734171839461,1.5153,224.86,224.77,8.23310167]
[1734171839664,8.23310167,224.85,224.78,8.23310167]
[1734171839841,1.5153,224.86,224.79,8.23310167]
[1734171840056,9.74840167,224.86,224.79,8.23310167]
[1734171840258,14.24390167,224.87,224.79,8.23310167]
[1734171840675,8.23310167,224.86,224.79,8.23310167]
[1734171840868,8.23310167,224.86,224.74,20.66724225]
[1734171840869,14.24390167,224.87,224.8,8.23310167]
[1734171841468,8.23310167,224.87,224.8,8.23310167]
[1734171841664,8.23310167,224.88,224.81,8.23310167]
[1734171841870,20.0,224.89,224.81,8.23310167]
[1734171842071,8.23310167,224.88,224.81,8.23310167]
[1734171842480,8.23310167,224.88,224.74,156.0]
[1734171842481,8.23310167,224.87,224.8,8.23310167]
[1734171844259,0.12549,224.79,224.66,4.95159231]
[1734171844462,8.23310167,224.78,224.7,8.23310167]
[1734171845282,8.23310167,224.76,224.62,2.63994949]
[1734171845489,8.23310167,224.76,224.69,8.23310167]
[1734171845788,8.23310167,224.76,224.68,8.23310167]
[1734171846189,8.23310167,224.77,224.7,8.23310167]
[1734171846365,6.6722,224.82,224.7,8.23310167]
[1734171846564,28.23310167,224.81,224.74,8.23310167]
[1734171846962,8.23310167,224.8,224.73,8.23310167]
[1734171847191,23.776884,224.85,224.73,8.23310167]
[1734171847362,8.23310167,224.8,224.73,8.23310167]
[1734171848489,8.23310167,224.81,224.74,8.23310167]
[1734171848686,8.23310167,224.82,224.75,8.23310167]
[1734171849191,8.23310167,224.83,224.76,8.23310167]
[1734171851196,8.23310167,224.83,224.76,6.66624167]
[1734171852167,8.23310167,224.83,224.71,20.0]
[1734171852369,8.23310167,224.8,224.73,8.23310167]
[1734171852878,8.23310167,224.8,224.71,20.0]
[1734171853076,8.23310167,224.8,224.72,8.23310167]
[1734171853276,8.23310167,224.79,224.72,8.23310167]
[1734171855195,8.23310167,224.79,224.71,20.0]
[1734171855406,8.23310167,224.78,224.71,28.23310167]
[1734171856599,8.23310167,224.78,224.67,8.5142226]
[1734171856600,8.23310167,224.76,224.69,8.23310167]
[1734171857094,8.23310167,224.76,224.7,20.0]
[1734171857398,8.23310167,224.75,224.7,20.0]
[1734171857576,8.23310167,224.75,224.68,8.23310167]
[1734171857899,0.25098,224.83,224.7,8.23310167]
[1734171857900,8.23310167,224.77,224.7,8.23310167]
[1734171858491,8.23310167,224.73,224.67,0.5361226]
[1734171858977,8.23310167,224.72,224.67,0.5361226]
[1734171860177,8.23310167,224.71,224.67,0.5361226]
[1734171860900,8.23310167,224.7,224.67,0.5361226]
[1734171861107,8.23310167,224.71,224.67,0.5361226]
[1734171862203,8.23310167,224.68,224.67,0.5361226]
[1734171862734,8.23310167,224.69,224.67,0.5361226]
[1734171862944,1.6098,224.77,224.67,0.5361226]
[1734171862945,8.23310167,224.72,224.67,0.5361226]
[1734171863433,8.23310167,224.7,224.67,0.5361226]
[1734171863925,8.23310167,224.71,224.67,0.5361226]
[1734171864217,8.23310167,224.69,224.67,0.5361226]
[1734171864627,8.23310167,224.68,224.67,0.5361226]
[1734171865118,8.23310167,224.7,224.67,0.5361226]
[1734171866236,8.23310167,224.69,224.67,0.5361226]
[1734171867322,8.23310167,224.68,224.67,0.5361226]
[1734171868799,10.0,224.79,224.67,0.5361226]
[1734171869001,8.23310167,224.71,224.67,0.5361226]
[1734171869424,21.96068833,224.83,224.67,0.5361226]
[1734171869609,8.23310167,224.73,224.67,0.5361226]
[1734171869924,2.67520968,224.81,224.67,0.5361226]
[1734171869925,8.23310167,224.74,224.67,8.76922427]
[1734171870129,8.23310167,224.73,224.67,0.5361226]
[1734171870609,7.67520968,224.81,224.68,8.23310167]
[1734171870811,8.23310167,224.74,224.67,8.76922427]
[1734171871210,7.67520968,224.81,224.67,0.5361226]
[1734171871211,8.23310167,224.73,224.67,0.5361226]
[1734171871404,8.23310167,224.74,224.67,8.76922427]
[1734171873036,8.23310167,224.75,224.68,8.23310167]
[1734171873230,23.776884,224.81,224.69,8.23310167]
[1734171873409,8.23310167,224.76,224.69,8.23310167]
[1734171874111,8.23310167,224.77,224.7,8.23310167]
[1734171874651,8.23310167,224.76,224.69,8.23310167]
[1734171875913,8.23310167,224.77,224.7,8.23310167]
[1734171876109,1.5366,224.82,224.68,8.48408167]
[1734171876110,8.23310167,224.75,224.68,8.48408167]
[1734171877530,8.23310167,224.76,224.69,8.23310167]
[1734171880020,8.23310167,224.77,224.7,8.23310167]
[1734171880217,8.23310167,224.76,224.69,8.23310167]
[1734171882421,8.23310167,224.77,224.7,8.23310167]
[1734171883620,8.23310167,224.78,224.71,9.82740167]
[1734171884931,20.0,224.85,224.73,8.23310167]
[1734171885117,8.23310167,224.79,224.73,8.23310167]
[1734171885810,8.23310167,224.8,224.73,8.23310167]
[1734171886016,8.23310167,224.81,224.74,8.23310167]
[1734171886438,0.25098,224.86,224.73,20.0]
[1734171886643,8.23310167,224.81,224.74,8.23310167]
[1734171887315,8.23310167,224.8,224.73,28.23310167]
[1734171888123,0.25098,224.86,224.73,28.23310167]
[1734171888329,8.23310167,224.81,224.74,8.23310167]
[1734171888530,8.23310167,224.8,224.73,28.23310167]
[1734171889020,8.23310167,224.81,224.73,28.23310167]
[1734171889225,8.23310167,224.81,224.74,8.23310167]
[1734171891561,8.23310167,224.82,224.75,8.23310167]
[1734171892124,8.23310167,224.83,224.75,8.23310167]
[1734171892945,8.23310167,224.83,224.73,20.0]
[1734171893146,8.23310167,224.83,224.75,8.23310167]
[1734171893778,23.52083768,224.88,224.77,8.23310167]
[1734171894071,8.23310167,224.86,224.78,8.23310167]
[1734171895057,8.23310167,224.89,224.81,8.23310167]
[1734171895760,0.12549,224.93,224.82,8.23310167]
[1734171895964,8.23310167,224.9,224.83,8.23310167]
[1734171896168,8.23310167,224.91,224.84,8.23310167]
[1734171898759,1.662,224.99,224.85,8.23310167]
[1734171898936,1.662,224.99,224.8,23.776884]
[1734171898937,8.23310167,224.93,224.86,8.23310167]
[1734171900052,8.23310167,224.94,224.87,8.23310167]
[1734171900264,8.23310167,224.95,224.88,8.23310167]
[1734171901279,8.23310167,224.94,224.87,9.74640167]
[1734171902474,8.23310167,224.96,224.89,8.23310167]
[1734171902773,8.23310167,224.95,224.88,8.23310167]
[1734171905170,20.0,225.0,224.88,8.23310167]
[1734171905372,8.23310167,224.95,224.88,8.23310167]
[1734171906470,8.23310167,224.97,224.9,8.23310167]
[1734171907284,1.662,225.04,224.92,8.23310167]
[1734171907482,8.23310167,225.0,224.93,8.23310167]
[1734171908171,8.23310167,224.99,224.92,8.23310167]
[1734171908705,39.29110668,225.06,224.93,8.23310167]